fUST/lending_fUST_20251011
["ID","MTS","AMOUNT","RATE_DAILY","PERIOD"]
[390837953,1760176260936,-500.0,0.00024657,9]
[390837954,1760176260948,-1552.33,0.00024657,3]
[390837955,1760176260957,-500.0,0.00024657,9]
[390837957,1760176260966,-1552.33,0.00024657,3]
[390837958,1760176260975,-500.0,0.00024657,9]
[390837960,1760176260984,-1552.33,0.00024657,3]
[390837962,1760176260994,-500.0,0.00024657,9]
[390837963,1760176261003,-1552.33,0.00024657,3]
[390837964,1760176261012,-497.05,0.00024657,9]
[390837965,1760176261022,-1552.33,0.00024657,3]
[390837966,1760176261037,-1552.33,0.00024657,3]
[390837967,1760176261046,-594.2,0.00024657,9]
[390837968,1760176261055,-1552.33,0.00024657,3]
[390837969,1760176261064,-594.2,0.00024657,9]
[390837970,1760176261073,-1552.33,0.00024657,3]
[390837971,1760176261083,-594.2,0.00024657,9]
[390837972,1760176261092,-500.0,0.00024657,9]
[390837973,1760176261101,-1552.33,0.00024657,3]
[390837974,1760176261110,-500.0,0.00024657,9]
[390837975,1760176261119,-594.2,0.00024657,9]
[390837976,1760176261128,-1552.33,0.00024657,3]
[390837977,1760176261138,-500.0,0.00024657,9]
[390837978,1760176261147,-594.2,0.00024657,9]
[390837979,1760176261156,-1552.33,0.00024657,3]
[390837980,1760176261165,-594.2,0.00024657,9]
[390837981,1760176261174,-500.0,0.00024657,9]
[390837982,1760176261183,-1552.33,0.00024657,3]
[390837983,1760176261192,-594.2,0.00024657,9]
[390837984,1760176261202,-1552.33,0.00024657,3]
[390837985,1760176261211,-594.2,0.00024657,9]
[390837986,1760176261220,-500.0,0.00024657,9]
[390837987,1760176261229,-1552.33,0.00024657,3]
[390837988,1760176261239,-500.0,0.00024657,9]
[390837989,1760176261248,-594.2,0.00024657,9]
[390837990,1760176261257,-1552.33,0.00024657,3]
[390837991,1760176261266,-500.0,0.00024657,9]
[390837992,1760176261276,-500.0,0.00024657,9]
[390837993,1760176261288,-500.0,0.00024657,9]
[390837994,1760176261297,-594.2,0.00024657,9]
[390837995,1760176261307,-500.0,0.00024657,9]
[390837996,1760176261316,-500.0,0.00024657,9]
[390837997,1760176261326,-500.0,0.00024657,9]
[390837998,1760176261335,-1552.4,0.00024657,3]
[390837999,1760176261344,-594.2,0.00024657,9]
[390838000,1760176261354,-615.6778561,0.00024657,9]
[390838001,1760176261363,-500.0,0.00024657,9]
[390838002,1760176261372,-594.2,0.00024657,9]
[390838003,1760176261381,-500.0,0.00024657,9]
[390838004,1760176261391,-594.2,0.00024657,9]
[390838005,1760176261400,-533.97,0.00024657,9]
[390838006,1760176261409,-594.2,0.00024657,9]
[390838007,1760176261419,-594.2,0.00024657,9]
[390838008,1760176261428,-594.2,0.00024657,9]
[390838009,1760176261437,-594.2,0.00024657,9]
[390838010,1760176261447,-500.0,0.00024657,9]
[390838011,1760176261457,-594.2,0.00024657,9]
[390838012,1760176261466,-500.0,0.00024657,9]
[390838013,1760176261476,-594.2,0.00024657,9]
[390838014,1760176261486,-500.0,0.00024657,9]
[390838015,1760176261495,-500.0,0.00024657,9]
[390838016,1760176261505,-500.0,0.00024657,9]
[390838017,1760176261514,-594.2,0.00024657,9]
[390838018,1760176261524,-500.0,0.00024657,9]
[390838019,1760176261535,-500.0,0.00024657,9]
[390838020,1760176261544,-594.2,0.00024657,9]
[390838021,1760176261554,-500.0,0.00024657,9]
[390838022,1760176261563,-500.0,0.00024657,9]
[390838023,1760176261572,-594.2,0.00024657,9]
[390838024,1760176261582,-500.0,0.00024657,9]
[390838025,1760176261591,-500.0,0.00024657,9]
[390838026,1760176261600,-184.15,0.00024657,9]
[390838027,1760176261609,-594.2,0.00024657,9]
[390838028,1760176261618,-500.0,0.00024657,9]
[390838029,1760176261627,-594.38885857,0.00024657,9]
[390838030,1760176261636,-500.0,0.00024657,9]
[390838031,1760176261645,-500.0,0.00024657,9]
[390838032,1760176261655,-500.0,0.00024657,9]
[390838033,1760176261664,-500.0,0.00024657,9]
[390838034,1760176261673,-500.0,0.00024657,9]
[390838035,1760176261682,-500.0,0.00024657,9]
[390838036,1760176261691,-500.0,0.00024657,9]
[390838037,1760176261700,-500.0,0.00024657,9]
[390838038,1760176261710,-500.0,0.00024657,9]
[390838039,1760176261719,-500.0,0.00024657,9]
[390838040,1760176261728,-500.0,0.00024657,9]
[390838041,1760176261738,-500.0,0.00024657,9]
[390838042,1760176261747,-500.0,0.00024657,9]
[390838043,1760176261757,-500.0,0.00024657,9]
[390838044,1760176261767,-500.0,0.00024657,9]
[390838045,1760176261776,-500.0,0.00024657,9]
[390838046,1760176261787,-500.0,0.00024657,9]
[390838047,1760176261797,-500.0,0.00024657,9]
[390838048,1760176261807,-500.0,0.00024657,9]
[390838049,1760176261816,-500.0,0.00024657,9]
[390838050,1760176261827,-419.12,0.00024657,9]
[390838051,1760176261836,-500.0,0.00024657,9]
[390838052,1760176261846,-164.23732819,0.00024657,9]
[390838053,1760176261864,-335.76267181,0.00024657,9]
[390838054,1760176261874,-500.0,0.00024657,9]
[390838055,1760176261884,-500.0,0.00024657,9]
[390838056,1760176261893,-500.0,0.00024657,9]
[390838057,1760176261902,-500.0,0.00024657,9]
[390838058,1760176261912,-500.0,0.00024657,9]
[390838059,1760176261921,-500.0,0.00024657,9]
[390838061,1760176261931,-500.0,0.00024657,9]
[390838063,1760176261940,-500.0,0.00024657,9]
[390838065,1760176261952,-500.0,0.00024657,9]
[390838067,1760176261962,-500.0,0.00024657,9]
[390838069,1760176261971,-500.0,0.00024657,9]
[390838070,1760176261980,-500.0,0.00024657,9]
[390838071,1760176261989,-500.0,0.00024657,9]
[390838073,1760176261999,-241.48,0.00024657,9]
[390838074,1760176262007,-500.0,0.00024657,9]
[390838076,1760176262016,-500.0,0.00024657,9]
[390838077,1760176262028,-500.0,0.00024657,9]
[390838079,1760176262037,-500.0,0.00024657,9]
[390838080,1760176262046,-633.46555812,0.00024657,9]
[390838082,1760176262055,-500.0,0.00024657,9]
[390838083,1760176262064,-500.0,0.00024657,9]
[390838085,1760176262073,-500.0,0.00024657,9]
[390838087,1760176262082,-500.0,0.00024657,9]
[390838089,1760176262092,-500.0,0.00024657,9]
[390838091,1760176262100,-500.0,0.00024657,9]
[390838092,1760176262109,-500.0,0.00024657,2]
[390838093,1760176262118,-500.0,0.00024657,2]
[390838094,1760176262127,-500.0,0.00024657,9]
[390838095,1760176262136,-500.0,0.00024657,2]
[390838096,1760176262145,-500.0,0.00024657,9]
[390838097,1760176262155,-500.0,0.00024657,2]
[390838098,1760176262163,-500.0,0.00024657,9]
[390838099,1760176262172,-557.34,0.00024657,9]
[390838100,1760176262181,-500.0,0.00024657,2]
[390838101,1760176262191,-557.34,0.00024657,9]
[390838102,1760176262201,-500.0,0.00024657,9]
[390838103,1760176262210,-500.0,0.00024657,2]
[390838104,1760176262219,-557.34,0.00024657,9]
[390838105,1760176262229,-432.41534443,0.00024657,9]
[390838106,1760176262238,-500.0,0.00024657,2]
[390838107,1760176262248,-557.34,0.00024657,9]
[390838108,1760176262257,-500.0,0.00024657,2]
[390838109,1760176262266,-557.34,0.00024657,9]
[390838110,1760176262275,-500.0,0.00024657,2]
[390838111,1760176262286,-557.34,0.00024657,9]
[390838112,1760176262390,-500.0,0.00024657,2]
[390838113,1760176262399,-557.34,0.00024657,9]
[390838114,1760176262408,-500.0,0.00024657,2]
[390838115,1760176262418,-421.53766826,0.00024657,9]
[390838117,1760176503269,164.0,8.2e-07,2]
[390838118,1760176504822,164.0,8.2e-07,2]
[390838127,1760176648797,-5000.0,0.00018433,2]
[390838128,1760176648881,-0.01,0.00018533,10]
[390838129,1760176648965,-4999.99,0.00018533,10]
[390838130,1760176649002,-0.03,0.00018618,2]
[390838131,1760176649079,-1199.97,0.00018618,2]
[390838132,1760176649106,-394.32180138,0.00018619,2]
[390838133,1760176649137,-1200.0,0.00018719,2]
[390838134,1760176649166,-300.0,0.00018719,2]
[390838135,1760176649194,-300.0,0.00018998,2]
[390838136,1760176649221,-300.0,0.00018998,2]
[390838137,1760176649247,-300.0,0.00018999,2]
[390838138,1760176649274,-300.0,0.00018999,2]
[390838139,1760176649304,-300.0,0.00019093,2]
[390838140,1760176649333,-300.0,0.00019093,2]
[390838141,1760176649433,-300.0,0.00019093,2]
[390838142,1760176649461,-300.0,0.00019093,2]
[390838143,1760176649489,-300.0,0.00019093,2]
[390838144,1760176649520,-300.0,0.00019093,2]
[390838145,1760176649548,-300.0,0.00019093,2]
[390838146,1760176649578,-300.0,0.00019093,2]
[390838147,1760176649607,-300.0,0.00019093,2]
[390838148,1760176649637,-300.0,0.00019093,2]
[390838149,1760176649666,-300.0,0.00019093,2]
[390838150,1760176649695,-300.0,0.00019093,2]
[390838151,1760176649722,-300.0,0.00019093,2]
[390838152,1760176649752,-300.0,0.00019093,2]
[390838153,1760176649781,-300.0,0.00019093,2]
[390838154,1760176649809,-151.0,0.000191,2]
[390838155,1760176649836,-559.53,0.00020022,2]
[390838156,1760176649862,-160.0,0.00020089,2]
[390838157,1760176649988,-1610.0,0.00020302,2]
[390838158,1760176650016,-420.0,0.0002041,2]
[390838159,1760176650044,-172.77324605,0.00020501,2]
[390838160,1760176650478,-77.60315119,0.00020501,2]
[390838161,1760176650491,-420.0,0.00020501,2]
[390838162,1760176650508,-172.77324605,0.00020501,2]
[390838163,1760176650525,-5594.4635079,0.00020501,2]
[390838164,1760176650542,-10000.01,0.00020501,2]
[390838165,1760176650610,-10000.01,0.00020501,2]
[390838166,1760176650624,-10000.01,0.00020501,2]
[390838167,1760176650637,-10000.01,0.00020501,2]
[390838168,1760176650668,-3735.12009486,0.00020501,2]
[390838169,1760176650696,-849.76981028,0.00020509,2]
[390838170,1760176650735,-830.23018972,0.00020509,2]
[390838171,1760176652640,-3827.32807241,0.00020543,2]
[390838172,1760176652668,-309.0,0.00020708,2]
[390838173,1760176652697,-300.0,0.00020708,2]
[390838174,1760176652725,-420.0,0.00020709,2]
[390838175,1760176652810,-420.0,0.00020709,2]
[390838176,1760176652840,-600.0,0.0002091,2]
[390838177,1760176652867,-1119.07,0.00021842,2]
[390838178,1760176652897,-153.0,0.00021918,2]
[390838179,1760176652925,-153.0,0.00021918,2]
[390838180,1760176652952,-208.0,0.00021945,6]
[390838181,1760176653115,-587.0,0.00022253,2]
[390838182,1760176653150,-720.0,0.0002247,2]
[390838183,1760176653178,-307.0,0.00022573,2]
[390838184,1760176653206,-180.0,0.00022573,2]
[390838185,1760176653234,-233.81807619,0.00022996,2]
[390838186,1760176653262,-138.23384762,0.00022996,2]
[390838187,1760176653384,-361.76615238,0.00022996,2]
[390838188,1760176653412,-1000.0,0.00022998,2]
[390838189,1760176653442,-2609.37557469,0.00023,10]
[390838190,1760176653472,-720.0,0.00023001,20]
[390838191,1760176653501,-117.72654586,0.0002327,2]
[390838192,1760176653843,-382.27345414,0.0002327,2]
[390838193,1760176653852,-168.76615238,0.00023544,2]
[390838194,1760176653866,-331.23384762,0.00023544,2]
[390838195,1760176653879,-168.76615238,0.00023662,2]
[390838196,1760176654666,-1509.83384762,0.00023662,2]
[390838197,1760176654696,-500.0,0.00023818,2]
[390838198,1760176654724,-500.0,0.00024092,2]
[390838199,1760176654752,-343.0,0.00024218,2]
[390838200,1760176654781,-793.0,0.00024262,2]
[390838201,1760176654808,-500.0,0.00024366,2]
[390838202,1760176654835,-437.0,0.00024498,2]
[390838203,1760176654864,-329.47464043,0.000245,2]
[390838204,1760176654952,-175.3930239,0.000245,2]
[390838205,1760176654979,-1918.81583534,0.00024512,2]
[390838206,1760176655006,-1861.01170799,0.00024557,2]
[390838207,1760176655033,-390.19443505,0.00024557,2]
[390838208,1760176655060,-335.46,0.00024637,10]
[390838209,1760176655091,-155.19999544,0.00024646,10]
[390838210,1760176655230,-327.86000456,0.00024646,10]
[390838211,1760176655273,-402.55,0.00024646,10]
[390838212,1760176655300,-1327.09,0.00024647,3]
[390838213,1760176655329,-663.54,0.00024647,3]
[390838214,1760176655356,-907.04,0.00024647,3]
[390838215,1760176655387,-453.52,0.00024647,3]
[390838216,1760176655415,-226.76,0.00024647,3]
[390838217,1760176655444,-680.3,0.00024647,3]
[390838218,1760176656773,-500.0,0.00024656,2]
[390838219,1760176656804,-500.0,0.00024656,2]
[390838220,1760176656834,-347.85492649,0.00024656,2]
[390838221,1760176656863,-500.0,0.00024656,2]
[390838222,1760176656891,-500.0,0.00024656,2]
[390838223,1760176656920,-500.0,0.00024656,2]
[390838224,1760176656949,-573.28721624,0.00024656,2]
[390838225,1760176656976,-359.71893925,0.00024656,2]
[390838226,1760176657003,-500.0,0.00024656,2]
[390838227,1760176657031,-258.54429312,0.00024656,2]
[390838228,1760176657058,-421.1992498,0.00024656,2]
[390838229,1760176657291,-78.8007502,0.00024656,2]
[390838230,1760176657322,-500.0,0.00024656,2]
[390838231,1760176657353,-408.16228137,0.00024656,2]
[390838232,1760176657381,-500.0,0.00024656,2]
[390838233,1760176657408,-179.67069482,0.00024656,2]
[390838234,1760176657437,-280.02375158,0.00024656,2]
[390838235,1760176657590,-500.0,0.00024656,2]
[390838236,1760176657618,-500.0,0.00024656,2]
[390838237,1760176657649,-193.10639068,0.00024656,2]
[390838238,1760176657678,-527.9766476,0.00024656,2]
[390838239,1760176657708,-500.0,0.00024656,2]
[390838240,1760176657738,-500.0,0.00024656,2]
[390838241,1760176657768,-164.5289675,0.00024656,2]
[390838242,1760176657962,-335.4710325,0.00024656,2]
[390838243,1760176657993,-500.0,0.00024656,2]
[390838244,1760176658022,-171.78734,0.00024656,2]
[390838245,1760176658051,-500.0,0.00024656,2]
[390838246,1760176658085,-500.0,0.00024656,2]
[390838247,1760176658116,-500.0,0.00024656,2]
[390838248,1760176658149,-500.0,0.00024656,2]
[390838249,1760176658182,-500.0,0.00024656,2]
[390838250,1760176658211,-500.0,0.00024656,2]
[390838251,1760176658240,-500.0,0.00024656,2]
[390838252,1760176658267,-485.493255,0.00024656,2]
[390838253,1760176658835,-14.506745,0.00024656,2]
[390838254,1760176658843,-414.2717827,0.00024656,2]
[390838255,1760176658882,-85.7282173,0.00024656,2]
[390838256,1760176658913,-500.0,0.00024656,2]
[390838257,1760176658953,-500.0,0.00024656,2]
[390838258,1760176658992,-500.0,0.00024656,2]
[390838259,1760176659025,-500.0,0.00024656,2]
[390838260,1760176659062,-500.0,0.00024656,2]
[390838261,1760176659104,-500.0,0.00024656,2]
[390838262,1760176659139,-500.0,0.00024656,2]
[390838263,1760176659177,-500.0,0.00024656,2]
[390838264,1760176659211,-300.0,0.00024656,2]
[390838265,1760176659247,-500.0,0.00024656,2]
[390838266,1760176659300,-500.0,0.00024656,2]
[390838267,1760176659336,-471.78734,0.00024656,2]
[390838268,1760176659367,-500.0,0.00024656,2]
[390838269,1760176659400,-500.0,0.00024656,2]
[390838270,1760176659433,-500.0,0.00024656,2]
[390838271,1760176659468,-500.0,0.00024656,2]
[390838272,1760176659504,-500.0,0.00024656,2]
[390838273,1760176659539,-500.0,0.00024656,2]
[390838274,1760176659571,-500.0,0.00024656,2]
[390838275,1760176659603,-500.0,0.00024656,2]
[390838276,1760176660126,-228.5535654,0.00024656,2]
[390838277,1760176660144,-56.43532,0.00024656,2]
[390838278,1760176660365,22.68999088,0.00024647,2]
[390838279,1760176660392,4977.31000912,0.00024647,2]
[390838280,1760176660862,-215.0111146,0.00024656,2]
[390838281,1760176660895,-500.0,0.00024656,2]
[390838282,1760176660929,-500.0,0.00024656,2]
[390838283,1760176660961,-500.0,0.00024656,2]
[390838284,1760176660991,-300.0,0.00024656,2]
[390838285,1760176661023,-500.0,0.00024656,2]
[390838286,1760176661054,-500.0,0.00024656,2]
[390838287,1760176661090,-500.0,0.00024656,2]
[390838288,1760176661123,-154.47009268,0.00024656,2]
[390838289,1760176661161,-214.64866849,0.00024656,2]
[390838290,1760176661196,-340.65685851,0.00024656,2]
[390838291,1760176661415,-289.6,0.00024657,2]
[390838292,1760176661444,-471.23653144,0.00024657,9]
[390838293,1760176661538,279.55,0.00024637,10]
[390838294,1760176661672,-28.76346856,0.00024657,9]
[390838295,1760176661700,-353.66145379,0.00024657,9]
[390838296,1760176661726,-500.0,0.00024657,9]
[390838297,1760176661753,-500.0,0.00024657,9]
[390838298,1760176661779,-500.0,0.00024657,9]
[390838299,1760176661805,-500.0,0.00024657,9]
[390838300,1760176661830,-500.0,0.00024657,9]
[390838301,1760176661856,-500.0,0.00024657,9]
[390838302,1760176661883,-500.0,0.00024657,9]
[390838303,1760176661910,-500.0,0.00024657,9]
[390838304,1760176661936,-500.0,0.00024657,9]
[390838305,1760176662058,-500.0,0.00024657,9]
[390838306,1760176662093,-500.0,0.00024657,9]
[390838307,1760176662122,-500.0,0.00024657,9]
[390838308,1760176662153,-500.0,0.00024657,9]
[390838309,1760176662181,-500.0,0.00024657,9]
[390838310,1760176662207,-500.0,0.00024657,9]
[390838311,1760176662234,-500.0,0.00024657,9]
[390838312,1760176662262,-500.0,0.00024657,9]
[390838313,1760176662289,-500.0,0.00024657,9]
[390838314,1760176662317,-431.20500761,0.00024657,9]
[390838315,1760176662373,-137.59998478,0.00024657,9]
[390838316,1760176662400,-500.0,0.00024657,9]
[390838317,1760176662428,-500.0,0.00024657,9]
[390838318,1760176662459,-500.0,0.00024657,9]
[390838319,1760176662487,-500.0,0.00024657,9]
[390838320,1760176662517,-500.0,0.00024657,9]
[390838321,1760176662546,-500.0,0.00024657,9]
[390838322,1760176662575,-500.0,0.00024657,9]
[390838323,1760176662603,-500.0,0.00024657,9]
[390838324,1760176662631,-500.0,0.00024657,9]
[390838325,1760176662658,-224.81003044,0.00024657,9]
[390838326,1760176662694,-275.18996956,0.00024657,9]
[390838327,1760176662721,-500.0,0.00024657,9]
[390838328,1760176662748,-500.0,0.00024657,9]
[390838329,1760176662774,-500.0,0.00024657,9]
[390838330,1760176662800,-500.0,0.00024657,9]
[390838331,1760176662826,-521.62,0.00024657,9]
[390838332,1760176662852,-500.0,0.00024657,9]
[390838333,1760176662878,-500.0,0.00024657,9]
[390838334,1760176662906,-500.0,0.00024657,9]
[390838335,1760176662932,-500.0,0.00024657,9]
[390838336,1760176662999,-500.0,0.00024657,9]
[390838337,1760176663027,-325.64,0.00024657,5]
[390838338,1760176663054,-500.0,0.00024657,9]
[390838339,1760176663086,-500.0,0.00024657,9]
[390838340,1760176663114,-199.30995921,0.00024657,9]
[390838341,1760176663142,-500.0,0.00024657,9]
[390838342,1760176663179,-500.0,0.00024657,9]
[390838343,1760176663207,-500.0,0.00024657,9]
[390838344,1760176663235,-500.0,0.00024657,9]
[390838345,1760176663264,-500.0,0.00024657,9]
[390838346,1760176663292,-450.11008158,0.00024657,9]
[390838347,1760176663376,-49.88991842,0.00024657,9]
[390838348,1760176663404,-190.72829594,0.00024657,9]
[390838349,1760176663433,-501.36465575,0.00024657,9]
[390838350,1760176663461,-500.0,0.00024657,9]
[390838351,1760176663488,-500.0,0.00024657,9]
[390838352,1760176663516,-500.0,0.00024657,9]
[390838353,1760176663544,-500.0,0.00024657,9]
[390838354,1760176663572,-500.0,0.00024657,9]
[390838355,1760176663600,-500.0,0.00024657,9]
[390838356,1760176663628,-500.0,0.00024657,9]
[390838357,1760176663656,-500.0,0.00024657,9]
[390838358,1760176663824,-16.04425978,0.00024657,9]
[390838359,1760176663963,-483.95574022,0.00024657,9]
[390838360,1760176663990,-500.0,0.00024657,9]
[390838361,1760176664018,-500.0,0.00024657,9]
[390838362,1760176664045,-500.0,0.00024657,9]
[390838363,1760176664075,-500.0,0.00024657,9]
[390838364,1760176664102,-500.0,0.00024657,9]
[390838365,1760176664132,-500.0,0.00024657,9]
[390838366,1760176664160,-500.0,0.00024657,9]
[390838367,1760176664188,-500.0,0.00024657,9]
[390838368,1760176664215,-500.0,0.00024657,9]
[390838369,1760176664454,-500.0,0.00024657,9]
[390838370,1760176664483,-500.0,0.00024657,9]
[390838371,1760176664511,-500.0,0.00024657,9]
[390838372,1760176664540,-500.0,0.00024657,9]
[390838373,1760176664569,-354.25,0.00024657,9]
[390838374,1760176664597,-500.0,0.00024657,9]
[390838375,1760176664624,-500.0,0.00024657,9]
[390838376,1760176664652,-500.0,0.00024657,9]
[390838377,1760176664680,-500.0,0.00024657,9]
[390838378,1760176664708,-500.0,0.00024657,9]
[390838379,1760176666699,-500.0,0.00024657,9]
[390838380,1760176666731,-500.0,0.00024657,9]
[390838381,1760176666761,-500.0,0.00024657,9]
[390838382,1760176666792,-500.0,0.00024657,9]
[390838383,1760176666825,-500.0,0.00024657,9]
[390838384,1760176666866,-500.0,0.00024657,9]
[390838385,1760176666900,-500.0,0.00024657,9]
[390838386,1760176666931,-500.0,0.00024657,9]
[390838387,1760176666962,-500.0,0.00024657,9]
[390838388,1760176666989,-379.56,0.00024657,9]
[390838389,1760176667033,-500.0,0.00024657,9]
[390838390,1760176667060,-500.0,0.00024657,9]
[390838391,1760176667093,-500.0,0.00024657,9]
[390838392,1760176667121,-500.0,0.00024657,9]
[390838393,1760176667151,-500.0,0.00024657,9]
[390838394,1760176667178,-500.0,0.00024657,9]
[390838395,1760176667206,-500.0,0.00024657,9]
[390838396,1760176667233,-500.0,0.00024657,9]
[390838397,1760176667261,-500.0,0.00024657,9]
[390838398,1760176667289,-500.0,0.00024657,9]
[390838399,1760176667329,-500.0,0.00024657,9]
[390838400,1760176667357,-500.0,0.00024657,9]
[390838401,1760176667386,-500.0,0.00024657,9]
[390838402,1760176667414,-500.0,0.00024657,9]
[390838403,1760176667443,-500.0,0.00024657,9]
[390838404,1760176667473,-500.0,0.00024657,9]
[390838405,1760176667501,-500.0,0.00024657,9]
[390838406,1760176667529,-500.0,0.00024657,9]
[390838407,1760176667558,-500.0,0.00024657,9]
[390838408,1760176667586,-500.0,0.00024657,9]
[390838409,1760176667626,-500.0,0.00024657,9]
[390838410,1760176667656,-530.72,0.00024657,9]
[390838411,1760176667685,-500.0,0.00024657,9]
[390838412,1760176667716,-500.0,0.00024657,9]
[390838413,1760176667744,-500.0,0.00024657,9]
[390838414,1760176667772,-510.72,0.00024657,9]
[390838415,1760176667801,-500.0,0.00024657,9]
[390838416,1760176667830,-500.0,0.00024657,9]
[390838417,1760176667858,-500.0,0.00024657,9]
[390838418,1760176667885,-417.13,0.00024657,9]
[390838419,1760176668029,-82.87,0.00024657,9]
[390838420,1760176668057,-322.82842989,0.00024657,9]
[390838421,1760176668088,-500.0,0.00024657,9]
[390838422,1760176668116,-500.0,0.00024657,9]
[390838423,1760176668313,-500.0,0.00024657,9]
[390838424,1760176668346,-500.0,0.00024657,9]
[390838425,1760176668377,-500.0,0.00024657,9]
[390838426,1760176668407,-500.0,0.00024657,9]
[390838427,1760176668435,-500.0,0.00024657,9]
[390838428,1760176668464,-230.5,0.00024657,9]
[390838429,1760176668492,-500.0,0.00024657,9]
[390838430,1760176668521,-227.61314022,0.00024657,9]
[390838431,1760176668553,-272.38685978,0.00024657,9]
[390838432,1760176668582,-500.0,0.00024657,9]
[390838433,1760176668609,-500.0,0.00024657,9]
[390838434,1760176668636,-500.0,0.00024657,9]
[390838435,1760176668666,-406.99789248,0.00024657,9]
[390838436,1760176668695,-500.0,0.00024657,9]
[390838437,1760176668723,-500.0,0.00024657,9]
[390838438,1760176668751,-500.0,0.00024657,9]
[390838439,1760176668778,-500.0,0.00024657,9]
[390838440,1760176668807,-383.93,0.00024657,9]
[390838441,1760176668836,-373.38049548,0.00024657,9]
[390838442,1760176670391,-126.61950452,0.00024657,9]
[390838443,1760176670424,-500.0,0.00024657,9]
[390838444,1760176670458,-500.0,0.00024657,9]
[390838445,1760176670491,-500.0,0.00024657,9]
[390838446,1760176670525,-500.0,0.00024657,9]
[390838447,1760176670554,-500.0,0.00024657,9]
[390838448,1760176670583,-500.0,0.00024657,9]
[390838449,1760176670615,-500.0,0.00024657,9]
[390838450,1760176670651,-500.0,0.00024657,9]
[390838451,1760176670685,-500.0,0.00024657,9]
[390838452,1760176670717,-246.77099096,0.00024657,9]
[390838453,1760176670756,-253.22900904,0.00024657,9]
[390838454,1760176670788,-604.06754914,0.00024657,9]
[390838455,1760176670820,-500.0,0.00024657,9]
[390838456,1760176670852,-500.0,0.00024657,9]
[390838457,1760176670884,-500.0,0.00024657,9]
[390838458,1760176670918,-500.0,0.00024657,9]
[390838459,1760176670947,-500.0,0.00024657,9]
[390838460,1760176670979,-500.0,0.00024657,9]
[390838461,1760176671010,-500.0,0.00024657,9]
[390838462,1760176671041,-500.0,0.00024657,9]
[390838463,1760176671086,-500.0,0.00024657,9]
[390838464,1760176671117,-500.0,0.00024657,9]
[390838465,1760176671149,-500.0,0.00024657,9]
[390838466,1760176671179,-500.0,0.00024657,9]
[390838467,1760176671210,-500.0,0.00024657,9]
[390838468,1760176671239,-500.0,0.00024657,9]
[390838469,1760176671269,-500.0,0.00024657,9]
[390838470,1760176671300,-500.0,0.00024657,9]
[390838471,1760176671330,-500.0,0.00024657,9]
[390838472,1760176671359,-500.0,0.00024657,9]
[390838473,1760176671402,-500.0,0.00024657,9]
[390838474,1760176671434,-500.0,0.00024657,9]
[390838475,1760176671466,-500.0,0.00024657,9]
[390838476,1760176671495,-500.0,0.00024657,9]
[390838477,1760176671726,-500.0,0.00024657,9]